[Event "Titled Tuesday Blitz December 7 2021"]
[White "Koellner, Ruben Gideon"]
[Black "Tanenbaum, Zachary"]
[WhiteFideId "12993093"]
[BlackFideId "2060850"]
[WhiteElo "2573"]
[BlackElo "2168"]
[Result "0-1"]
[Round "09"]
[TimeControl "180+1"]
[Date "2021.12.07"]
[WhiteClock "0:00:08"]
[BlackClock "0:00:08"]

1. d4 {[%clk 0:02:38]}  d5 {[%clk 0:02:59]} 2. Bf4 {[%clk 0:02:36]}  Nf6 {[%clk 0:02:59]} 3. e3 {[%clk 0:02:32]}  c5 {[%clk 0:02:59]} 4. c3 {[%clk 0:02:32]}  Nc6 {[%clk 0:02:59]} 5. Nd2 {[%clk 0:02:30]}  Qb6 {[%clk 0:02:59]} 6. Qb3 {[%clk 0:02:30]}  c4 {[%clk 0:02:59]} 7. Qc2 {[%clk 0:02:30]}  g6 {[%clk 0:02:59]} 8. e4 {[%clk 0:02:29]}  dxe4 {[%clk 0:02:58]} 9. Bxc4 {[%clk 0:02:28]}  Qd8 {[%clk 0:02:59]} 10. Nxe4 {[%clk 0:02:26]}  Nxe4 {[%clk 0:02:48]} 11. Qxe4 {[%clk 0:02:27]}  Bg7 {[%clk 0:02:38]} 12. Nf3 {[%clk 0:02:24]}  O-O {[%clk 0:02:37]} 13. O-O {[%clk 0:02:24]}  Bf5 {[%clk 0:02:35]} 14. Qe2 {[%clk 0:02:23]}  Rc8 {[%clk 0:02:34]} 15. Rfe1 {[%clk 0:02:22]}  Bg4 {[%clk 0:01:56]} 16. Bd3 {[%clk 0:02:14]}  e6 {[%clk 0:01:55]} 17. h3 {[%clk 0:02:14]}  Bxf3 {[%clk 0:01:53]} 18. Qxf3 {[%clk 0:02:14]}  Qb6 {[%clk 0:01:50]} 19. Re2 {[%clk 0:02:10]}  Rfd8 {[%clk 0:01:48]} 20. Be4 {[%clk 0:02:05]}  Rd7 {[%clk 0:01:23]} 21. Rd2 {[%clk 0:02:04]}  Ne7 {[%clk 0:01:15]} 22. Rad1 {[%clk 0:01:59]}  Qa6 {[%clk 0:01:06]} 23. a3 {[%clk 0:01:53]}  Rcd8 {[%clk 0:01:05]} 24. h4 {[%clk 0:01:47]}  h5 {[%clk 0:01:03]} 25. g4 {[%clk 0:01:43]}  hxg4 {[%clk 0:01:03]} 26. Qg2 {[%clk 0:01:33]}  Qb5 {[%clk 0:00:37]} 27. Bd3 {[%clk 0:01:23]}  Qh5 {[%clk 0:00:34]} 28. Bg3 {[%clk 0:01:18]}  Nf5 {[%clk 0:00:33]} 29. Bxf5 {[%clk 0:01:14]}  exf5 {[%clk 0:00:31]} 30. Re2 {[%clk 0:01:12]}  Bh6 {[%clk 0:00:30]} 31. Qh2 {[%clk 0:01:10]}  Bg7 {[%clk 0:00:15]} 32. Rde1 {[%clk 0:01:09]}  Bf6 {[%clk 0:00:15]} 33. Kg2 {[%clk 0:01:02]}  Kg7 {[%clk 0:00:14]} 34. Be5 {[%clk 0:01:02]}  Bxe5 {[%clk 0:00:12]} 35. Qxe5+ {[%clk 0:01:02]}  Kh7 {[%clk 0:00:13]} 36. Qf6 {[%clk 0:01:00]}  Qh6 {[%clk 0:00:10]} 37. Re7 {[%clk 0:00:57]}  Qg7 {[%clk 0:00:10]} 38. Qg5 {[%clk 0:00:50]}  Rxe7 {[%clk 0:00:06]} 39. Rxe7 {[%clk 0:00:51]}  Rb8 {[%clk 0:00:03]} 40. h5 {[%clk 0:00:43]}  a5 {[%clk 0:00:03]} 41. h6 {[%clk 0:00:37]}  Qf8 {[%clk 0:00:03]} 42. Qf6 {[%clk 0:00:36]}  Kxh6 {[%clk 0:00:03]} 43. Rxf7 {[%clk 0:00:34]}  Qd8 {[%clk 0:00:03]} 44. Qg7+ {[%clk 0:00:23]}  Kg5 {[%clk 0:00:03]} 45. Rd7 {[%clk 0:00:23]}  Qe8 {[%clk 0:00:03]} 46. Re7 {[%clk 0:00:15]}  Qc6+ {[%clk 0:00:02]} 47. Kh2 {[%clk 0:00:12]}  Qf3 {[%clk 0:00:03]} 48. Re6 {[%clk 0:00:06]}  Qxf2+ {[%clk 0:00:03]} 49. Kh1 {[%clk 0:00:07]}  Qf3+ {[%clk 0:00:03]} 50. Kg1 {[%clk 0:00:08]}  Qg3+ {[%clk 0:00:04]} 51. Kf1 {[%clk 0:00:08]}  Qf3+ {[%clk 0:00:04]} 52. Ke1 {[%clk 0:00:09]}  Qg3+ {[%clk 0:00:05]} 53. Kd2 {[%clk 0:00:09]}  Qf4+ {[%clk 0:00:05]} 54. Kc2 {[%clk 0:00:09]}  Kh4 {[%clk 0:00:05]} 55. Rxg6 {[%clk 0:00:09]}  Kg3 {[%clk 0:00:06]} 56. Qh6 {[%clk 0:00:08]}  Qxh6 {[%clk 0:00:06]} 57. Rxh6 {[%clk 0:00:09]}  f4 {[%clk 0:00:07]} 58. Rf6 {[%clk 0:00:09]}  f3 {[%clk 0:00:07]} 59. Kd3 {[%clk 0:00:10]}  f2 {[%clk 0:00:07]} 60. d5 {[%clk 0:00:08]}  Kg2 {[%clk 0:00:07]} 61. d6 {[%clk 0:00:08]}  f1=Q+ {[%clk 0:00:07]} 62. Rxf1 {[%clk 0:00:08]}  Kxf1 {[%clk 0:00:08]} 0-1


[Site "https://www.chess.com"]

[Event "Titled Tuesday Blitz December 7 2021"]
[White "Kucuksari, Kaan"]
[Black "Koridze, Lile"]
[WhiteFideId "6380166"]
[BlackFideId "13612514"]
[WhiteElo "2305"]
[BlackElo "1978"]
[Result "0-1"]
[Round "09"]
[TimeControl "180+1"]
[Date "2021.12.07"]
[WhiteClock "0:02:45"]
[BlackClock "0:02:28"]

1. d4 {[%clk 0:03:00]}  Nf6 {[%clk 0:03:00]} 2. c4 {[%clk 0:03:01]}  e6 {[%clk 0:03:00]} 3. Nf3 {[%clk 0:03:02]}  d5 {[%clk 0:03:00]} 4. g3 {[%clk 0:03:03]}  Bb4+ {[%clk 0:03:00]} 5. Qd2 {[%clk 0:03:03]}  Bxd2+ {[%clk 0:03:00]} 6. Bxd2 {[%clk 0:03:04]}  dxc4 {[%clk 0:02:59]} 7. Bg2 {[%clk 0:03:05]}  O-O {[%clk 0:02:59]} 8. O-O {[%clk 0:03:06]}  c5 {[%clk 0:03:00]} 9. dxc5 {[%clk 0:03:05]}  Nc6 {[%clk 0:02:59]} 10. Nc3 {[%clk 0:03:00]}  Qe7 {[%clk 0:02:57]} 11. Be3 {[%clk 0:02:57]}  Ng4 {[%clk 0:02:53]} 12. Bg5 {[%clk 0:02:54]}  Qxc5 {[%clk 0:02:52]} 13. Ne4 {[%clk 0:02:51]}  Qa5 {[%clk 0:02:51]} 14. Bd2 {[%clk 0:02:50]}  Qc7 {[%clk 0:02:50]} 15. Rfc1 {[%clk 0:02:47]}  b5 {[%clk 0:02:49]} 16. a4 {[%clk 0:02:46]}  Ba6 {[%clk 0:02:46]} 17. Nc5 {[%clk 0:02:45]}  Qb6 {[%clk 0:02:29]} 18. Nd7 {[%clk 0:02:45]}  Qxf2+ {[%clk 0:02:29]} 19. Kh1 {[%clk 0:02:45]}  Rfd8 {[%clk 0:02:28]} 0-1


[Site "https://www.chess.com"]

[Event "Titled Tuesday Blitz December 7 2021"]
[White "Leiva, Gianmarco"]
[Black "Maly, Alexey"]
[WhiteFideId "3804399"]
[BlackFideId "14103184"]
[WhiteElo "2328"]
[BlackElo "2294"]
[Result "0-1"]
[Round "09"]
[TimeControl "180+1"]
[Date "2021.12.07"]
[WhiteClock "0:00:59"]
[BlackClock "0:02:12"]

1. e4 {[%clk 0:02:58]}  c6 {[%clk 0:02:58]} 2. d4 {[%clk 0:02:57]}  d5 {[%clk 0:02:59]} 3. e5 {[%clk 0:02:57]}  Bf5 {[%clk 0:02:59]} 4. h4 {[%clk 0:02:55]}  h5 {[%clk 0:02:58]} 5. Bd3 {[%clk 0:02:54]}  Bxd3 {[%clk 0:02:58]} 6. Qxd3 {[%clk 0:02:54]}  e6 {[%clk 0:02:58]} 7. Bg5 {[%clk 0:02:52]}  Qa5+ {[%clk 0:02:58]} 8. Nd2 {[%clk 0:02:38]}  Qa6 {[%clk 0:02:57]} 9. Qf3 {[%clk 0:02:30]}  Nd7 {[%clk 0:02:53]} 10. Ne2 {[%clk 0:02:30]}  Ne7 {[%clk 0:02:48]} 11. Ng3 {[%clk 0:02:11]}  c5 {[%clk 0:02:40]} 12. Bxe7 {[%clk 0:01:54]}  Bxe7 {[%clk 0:02:39]} 13. Nxh5 {[%clk 0:01:54]}  g6 {[%clk 0:02:30]} 14. Ng7+ {[%clk 0:01:53]}  Kf8 {[%clk 0:02:28]} 15. Nxe6+ {[%clk 0:01:24]}  Qxe6 {[%clk 0:02:27]} 16. c3 {[%clk 0:01:24]}  Rxh4 {[%clk 0:02:19]} 17. O-O {[%clk 0:01:14]}  Kg7 {[%clk 0:02:15]} 18. g3 {[%clk 0:01:07]}  Rh5 {[%clk 0:02:14]} 19. Kg2 {[%clk 0:00:59]}  Qh3+ {[%clk 0:02:12]} 0-1


[Site "https://www.chess.com"]

[Event "Titled Tuesday Blitz December 7 2021"]
[White "Ljukin, Sergei"]
[Black "Shahade, Gregory"]
[WhiteFideId "14102200"]
[BlackFideId "2009064"]
[WhiteElo "2311"]
[BlackElo "2657"]
[Result "0-1"]
[Round "09"]
[TimeControl "180+1"]
[Date "2021.12.07"]
[WhiteClock "0:00:08"]
[BlackClock "0:00:14"]

1. e4 {[%clk 0:02:56]}  e5 {[%clk 0:03:00]} 2. Nf3 {[%clk 0:02:55]}  Nc6 {[%clk 0:03:00]} 3. Bb5 {[%clk 0:02:55]}  a6 {[%clk 0:03:00]} 4. Ba4 {[%clk 0:02:55]}  Nf6 {[%clk 0:03:00]} 5. Qe2 {[%clk 0:02:54]}  b5 {[%clk 0:02:59]} 6. Bb3 {[%clk 0:02:54]}  Bc5 {[%clk 0:02:59]} 7. c3 {[%clk 0:02:54]}  O-O {[%clk 0:02:58]} 8. d3 {[%clk 0:02:55]}  d5 {[%clk 0:02:56]} 9. Bg5 {[%clk 0:02:53]}  dxe4 {[%clk 0:02:49]} 10. dxe4 {[%clk 0:02:53]}  h6 {[%clk 0:02:48]} 11. Bh4 {[%clk 0:02:43]}  Qd6 {[%clk 0:02:39]} 12. Nbd2 {[%clk 0:02:40]}  Nh5 {[%clk 0:02:38]} 13. Bg3 {[%clk 0:02:10]}  Nf4 {[%clk 0:02:32]} 14. Bxf4 {[%clk 0:02:09]}  exf4 {[%clk 0:02:33]} 15. O-O-O {[%clk 0:01:57]}  Na5 {[%clk 0:02:33]} 16. Bc2 {[%clk 0:01:46]}  Qe6 {[%clk 0:02:28]} 17. Nb3 {[%clk 0:01:46]}  Bb6 {[%clk 0:02:23]} 18. Nxa5 {[%clk 0:01:41]}  Bxa5 {[%clk 0:02:23]} 19. Bb3 {[%clk 0:01:41]}  Qe7 {[%clk 0:02:12]} 20. Nd4 {[%clk 0:01:32]}  Bb7 {[%clk 0:02:07]} 21. f3 {[%clk 0:01:27]}  Qe5 {[%clk 0:02:00]} 22. Nf5 {[%clk 0:01:20]}  Rfe8 {[%clk 0:01:55]} 23. Qd3 {[%clk 0:01:16]}  c5 {[%clk 0:01:46]} 24. Bd5 {[%clk 0:01:12]}  Rad8 {[%clk 0:01:38]} 25. c4 {[%clk 0:01:12]}  Bxd5 {[%clk 0:01:32]} 26. cxd5 {[%clk 0:01:03]}  c4 {[%clk 0:01:32]} 27. Qd4 {[%clk 0:01:00]}  Qxd4 {[%clk 0:01:20]} 28. Nxd4 {[%clk 0:01:00]}  Bb6 {[%clk 0:01:20]} 29. Nc6 {[%clk 0:00:51]}  Rc8 {[%clk 0:01:20]} 30. a4 {[%clk 0:00:47]}  bxa4 {[%clk 0:01:13]} 31. Kc2 {[%clk 0:00:45]}  f6 {[%clk 0:01:10]} 32. Ra1 {[%clk 0:00:44]}  f5 {[%clk 0:01:01]} 33. e5 {[%clk 0:00:43]}  Rxc6 {[%clk 0:00:47]} 34. dxc6 {[%clk 0:00:42]}  Rxe5 {[%clk 0:00:48]} 35. Rhe1 {[%clk 0:00:37]}  Rc5 {[%clk 0:00:42]} 36. Rxa4 {[%clk 0:00:36]}  a5 {[%clk 0:00:39]} 37. Kc3 {[%clk 0:00:23]}  Rxc6 {[%clk 0:00:38]} 38. Rxc4 {[%clk 0:00:23]}  Rg6 {[%clk 0:00:37]} 39. Re2 {[%clk 0:00:18]}  Be3 {[%clk 0:00:37]} 40. Kb3 {[%clk 0:00:12]}  Ra6 {[%clk 0:00:25]} 41. Ka4 {[%clk 0:00:12]}  Kh7 {[%clk 0:00:25]} 42. Rc7 {[%clk 0:00:10]}  h5 {[%clk 0:00:19]} 43. Rb7 {[%clk 0:00:09]}  Rd6 {[%clk 0:00:15]} 44. Kxa5 {[%clk 0:00:08]}  Rd1 {[%clk 0:00:15]} 45. Rb5 {[%clk 0:00:07]}  g6 {[%clk 0:00:15]} 46. h3 {[%clk 0:00:08]}  Kh6 {[%clk 0:00:15]} 47. b4 {[%clk 0:00:08]}  Ra1+ {[%clk 0:00:14]} 0-1


[Site "https://www.chess.com"]

[Event "Titled Tuesday Blitz December 7 2021"]
[White "Maksimenko, Viktor"]
[Black "Daniel, Damian"]
[WhiteFideId "13710478"]
[BlackFideId "1183621"]
[WhiteElo "2269"]
[BlackElo "2055"]
[Result "1-0"]
[Round "09"]
[TimeControl "180+1"]
[Date "2021.12.07"]
[WhiteClock "0:02:24"]
[BlackClock "0:00:19"]

1. d4 {[%clk 0:03:00]}  Nf6 {[%clk 0:02:59]} 2. c4 {[%clk 0:03:01]}  e6 {[%clk 0:03:00]} 3. Nf3 {[%clk 0:03:01]}  Bb4+ {[%clk 0:03:00]} 4. Bd2 {[%clk 0:03:01]}  Qe7 {[%clk 0:03:00]} 5. g3 {[%clk 0:03:00]}  O-O {[%clk 0:02:48]} 6. Bg2 {[%clk 0:02:57]}  Bxd2+ {[%clk 0:02:48]} 7. Qxd2 {[%clk 0:02:47]}  d6 {[%clk 0:02:48]} 8. Nc3 {[%clk 0:02:46]}  e5 {[%clk 0:02:48]} 9. O-O {[%clk 0:02:44]}  Re8 {[%clk 0:02:28]} 10. Rfe1 {[%clk 0:02:40]}  e4 {[%clk 0:01:50]} 11. Ng5 {[%clk 0:02:38]}  e3 {[%clk 0:01:43]} 12. fxe3 {[%clk 0:02:37]}  Qxe3+ {[%clk 0:01:22]} 13. Qxe3 {[%clk 0:02:38]}  Rxe3 {[%clk 0:01:22]} 14. Nge4 {[%clk 0:02:37]}  Nc6 {[%clk 0:00:43]} 15. Nxf6+ {[%clk 0:02:33]}  gxf6 {[%clk 0:00:43]} 16. Nd5 {[%clk 0:02:34]}  Re6 {[%clk 0:00:23]} 17. Nxc7 {[%clk 0:02:33]}  Nxd4 {[%clk 0:00:19]} 18. Nxa8 {[%clk 0:02:24]} 1-0


[Site "https://www.chess.com"]

[Event "Titled Tuesday Blitz December 7 2021"]
[White "Matinian, Nikita"]
[Black "Kretchetov, Alexandre"]
[WhiteFideId "24129100"]
[BlackFideId "4124588"]
[WhiteElo "2422"]
[BlackElo "2502"]
[Result "1-0"]
[Round "09"]
[TimeControl "180+1"]
[Date "2021.12.07"]
[WhiteClock "0:01:42"]
[BlackClock "0:00:45"]

1. e4 {[%clk 0:03:00]}  c6 {[%clk 0:02:59]} 2. Nc3 {[%clk 0:03:00]}  d5 {[%clk 0:02:58]} 3. Nf3 {[%clk 0:03:01]}  g6 {[%clk 0:02:58]} 4. d4 {[%clk 0:02:58]}  Bg7 {[%clk 0:02:58]} 5. Bd3 {[%clk 0:02:57]}  Nh6 {[%clk 0:02:55]} 6. Bf4 {[%clk 0:02:54]}  f6 {[%clk 0:02:47]} 7. Qd2 {[%clk 0:02:52]}  Nf7 {[%clk 0:02:46]} 8. h4 {[%clk 0:02:53]}  O-O {[%clk 0:02:34]} 9. O-O-O {[%clk 0:02:52]}  Bg4 {[%clk 0:02:29]} 10. Kb1 {[%clk 0:02:50]}  e5 {[%clk 0:02:17]} 11. dxe5 {[%clk 0:02:25]}  fxe5 {[%clk 0:02:11]} 12. Bg3 {[%clk 0:02:21]}  d4 {[%clk 0:01:58]} 13. Ne2 {[%clk 0:02:20]}  Nd7 {[%clk 0:01:47]} 14. Ng5 {[%clk 0:02:09]}  Nxg5 {[%clk 0:01:32]} 15. hxg5 {[%clk 0:02:09]}  Nb6 {[%clk 0:01:27]} 16. Rh4 {[%clk 0:02:08]}  Bxe2 {[%clk 0:01:20]} 17. Bxe2 {[%clk 0:02:09]}  Rf7 {[%clk 0:01:19]} 18. Rdh1 {[%clk 0:02:08]}  Bf8 {[%clk 0:01:17]} 19. Bxe5 {[%clk 0:02:07]}  c5 {[%clk 0:01:17]} 20. Bf6 {[%clk 0:02:07]}  Qd7 {[%clk 0:01:10]} 21. f4 {[%clk 0:02:03]}  Re8 {[%clk 0:01:07]} 22. f5 {[%clk 0:02:03]}  gxf5 {[%clk 0:01:03]} 23. exf5 {[%clk 0:02:04]}  Nd5 {[%clk 0:00:58]} 24. Bc4 {[%clk 0:02:00]}  b5 {[%clk 0:00:55]} 25. Bxd5 {[%clk 0:02:00]}  Qxd5 {[%clk 0:00:55]} 26. g6 {[%clk 0:01:44]}  Rxf6 {[%clk 0:00:54]} 27. Rxh7 {[%clk 0:01:44]}  Qxf5 {[%clk 0:00:46]} 28. Rh8+ {[%clk 0:01:42]}  Kg7 {[%clk 0:00:45]} 29. Qh6# {[%clk 0:01:42]} 1-0


[Site "https://www.chess.com"]

[Event "Titled Tuesday Blitz December 7 2021"]
[White "Mezentsev, Ivan"]
[Black "Rustemov, Alexander"]
[WhiteFideId "13706195"]
[BlackFideId "4119002"]
[WhiteElo "2295"]
[BlackElo "2728"]
[Result "1-0"]
[Round "09"]
[TimeControl "180+1"]
[Date "2021.12.07"]
[WhiteClock "0:00:03"]
[BlackClock "0:00:09"]

1. d4 {[%clk 0:03:00]}  d5 {[%clk 0:02:59]} 2. Nf3 {[%clk 0:02:57]}  Nf6 {[%clk 0:02:58]} 3. Bf4 {[%clk 0:02:56]}  e6 {[%clk 0:02:58]} 4. e3 {[%clk 0:02:56]}  Bd6 {[%clk 0:02:59]} 5. Bg3 {[%clk 0:02:56]}  O-O {[%clk 0:02:59]} 6. Nbd2 {[%clk 0:02:57]}  b6 {[%clk 0:02:59]} 7. c3 {[%clk 0:02:51]}  c5 {[%clk 0:02:58]} 8. Bd3 {[%clk 0:02:49]}  Ba6 {[%clk 0:02:58]} 9. Bxa6 {[%clk 0:02:46]}  Nxa6 {[%clk 0:02:59]} 10. O-O {[%clk 0:02:46]}  Nb8 {[%clk 0:02:57]} 11. Ne5 {[%clk 0:02:43]}  Qc7 {[%clk 0:02:53]} 12. f4 {[%clk 0:02:41]}  Nc6 {[%clk 0:02:50]} 13. Bh4 {[%clk 0:02:33]}  Nd7 {[%clk 0:02:49]} 14. Qg4 {[%clk 0:02:31]}  f5 {[%clk 0:02:43]} 15. Qe2 {[%clk 0:02:25]}  c4 {[%clk 0:02:37]} 16. Rf3 {[%clk 0:02:23]}  b5 {[%clk 0:02:35]} 17. Rh3 {[%clk 0:02:22]}  Nf6 {[%clk 0:02:12]} 18. Ndf3 {[%clk 0:01:51]}  Bxe5 {[%clk 0:02:00]} 19. fxe5 {[%clk 0:01:44]}  Ne4 {[%clk 0:01:58]} 20. Ng5 {[%clk 0:01:38]}  Nxg5 {[%clk 0:01:43]} 21. Bxg5 {[%clk 0:01:37]}  Qf7 {[%clk 0:01:44]} 22. Qf2 {[%clk 0:01:22]}  Qg6 {[%clk 0:00:49]} 23. Qh4 {[%clk 0:01:19]}  h6 {[%clk 0:00:47]} 24. Bf4 {[%clk 0:01:18]}  Qg4 {[%clk 0:00:44]} 25. Qf2 {[%clk 0:01:17]}  Kf7 {[%clk 0:00:40]} 26. Rg3 {[%clk 0:00:50]}  Qh5 {[%clk 0:00:40]} 27. e4 {[%clk 0:00:51]}  dxe4 {[%clk 0:00:36]} 28. d5 {[%clk 0:00:51]}  exd5 {[%clk 0:00:26]} 29. Qc5 {[%clk 0:00:47]}  Ne7 {[%clk 0:00:24]} 30. Qd6 {[%clk 0:00:35]}  Rae8 {[%clk 0:00:19]} 31. e6+ {[%clk 0:00:26]}  Kg8 {[%clk 0:00:19]} 32. Be5 {[%clk 0:00:27]}  g5 {[%clk 0:00:16]} 33. Bd4 {[%clk 0:00:27]}  Qg6 {[%clk 0:00:15]} 34. Rf1 {[%clk 0:00:24]}  Kh7 {[%clk 0:00:15]} 35. h4 {[%clk 0:00:17]}  f4 {[%clk 0:00:15]} 36. Rg4 {[%clk 0:00:15]}  Nf5 {[%clk 0:00:16]} 37. Qe5 {[%clk 0:00:15]}  Rxe6 {[%clk 0:00:14]} 38. Qxd5 {[%clk 0:00:14]}  e3 {[%clk 0:00:13]} 39. hxg5 {[%clk 0:00:13]}  hxg5 {[%clk 0:00:14]} 40. Rxg5 {[%clk 0:00:10]}  Qxg5 {[%clk 0:00:13]} 41. Qxe6 {[%clk 0:00:10]}  Rg8 {[%clk 0:00:11]} 42. Qd7+ {[%clk 0:00:06]}  Kh6 {[%clk 0:00:10]} 43. Qc6+ {[%clk 0:00:04]}  Rg6 {[%clk 0:00:10]} 44. Qa8 {[%clk 0:00:03]}  Nh4 {[%clk 0:00:09]} 45. Qh8# {[%clk 0:00:03]} 1-0


[Site "https://www.chess.com"]

[Event "Titled Tuesday Blitz December 7 2021"]
[White "Mickiewicz, Piotr"]
[Black "Gheorghiu, Calin"]
[WhiteFideId "1114891"]
[BlackFideId "1200305"]
[WhiteElo "2266"]
[BlackElo "2213"]
[Result "1/2-1/2"]
[Round "09"]
[TimeControl "180+1"]
[Date "2021.12.07"]
[WhiteClock "0:00:07"]
[BlackClock "0:00:17"]

1. Nf3 {[%clk 0:03:00]}  d5 {[%clk 0:02:59]} 2. c4 {[%clk 0:03:01]}  d4 {[%clk 0:02:58]} 3. e3 {[%clk 0:03:00]}  Nc6 {[%clk 0:02:55]} 4. a3 {[%clk 0:02:57]}  e5 {[%clk 0:02:48]} 5. d3 {[%clk 0:02:57]}  a5 {[%clk 0:02:42]} 6. exd4 {[%clk 0:02:56]}  exd4 {[%clk 0:02:42]} 7. g3 {[%clk 0:02:55]}  Nf6 {[%clk 0:02:41]} 8. Bg2 {[%clk 0:02:55]}  Be7 {[%clk 0:02:42]} 9. O-O {[%clk 0:02:54]}  O-O {[%clk 0:02:42]} 10. Bg5 {[%clk 0:02:51]}  Bg4 {[%clk 0:02:30]} 11. Nbd2 {[%clk 0:02:49]}  Qd7 {[%clk 0:02:26]} 12. Re1 {[%clk 0:02:42]}  Rfe8 {[%clk 0:02:24]} 13. Qb3 {[%clk 0:02:39]}  a4 {[%clk 0:02:14]} 14. Qc2 {[%clk 0:02:27]}  h6 {[%clk 0:02:03]} 15. Bxf6 {[%clk 0:02:26]}  Bxf6 {[%clk 0:02:04]} 16. Ne4 {[%clk 0:02:23]}  Be7 {[%clk 0:02:04]} 17. b4 {[%clk 0:02:18]}  axb3 {[%clk 0:02:02]} 18. Qxb3 {[%clk 0:02:18]}  Ra7 {[%clk 0:01:54]} 19. Ned2 {[%clk 0:02:05]}  Rea8 {[%clk 0:01:53]} 20. a4 {[%clk 0:02:01]}  Bf8 {[%clk 0:01:46]} 21. Ne5 {[%clk 0:01:59]}  Nxe5 {[%clk 0:01:45]} 22. Rxe5 {[%clk 0:02:00]}  Rxa4 {[%clk 0:01:41]} 23. Rxa4 {[%clk 0:01:45]}  Rxa4 {[%clk 0:01:40]} 24. Qxb7 {[%clk 0:00:52]}  Ra1+ {[%clk 0:01:36]} 25. Nf1 {[%clk 0:00:51]}  Qa4 {[%clk 0:00:52]} 26. Qb8 {[%clk 0:00:43]}  Qd1 {[%clk 0:00:29]} 27. Re8 {[%clk 0:00:41]}  Qxf1+ {[%clk 0:00:23]} 28. Bxf1 {[%clk 0:00:40]}  Bh3 {[%clk 0:00:23]} 29. Rxf8+ {[%clk 0:00:25]}  Kh7 {[%clk 0:00:22]} 30. Rh8+ {[%clk 0:00:26]}  Kg6 {[%clk 0:00:22]} 31. Rxh6+ {[%clk 0:00:26]}  gxh6 {[%clk 0:00:18]} 32. Qg8+ {[%clk 0:00:26]}  Kf6 {[%clk 0:00:18]} 33. Qh8+ {[%clk 0:00:16]}  Ke7 {[%clk 0:00:16]} 34. Qe5+ {[%clk 0:00:14]}  Kf8 {[%clk 0:00:16]} 35. Qh8+ {[%clk 0:00:11]}  Ke7 {[%clk 0:00:16]} 36. Qe5+ {[%clk 0:00:11]}  Kf8 {[%clk 0:00:16]} 37. Qh8+ {[%clk 0:00:07]}  Ke7 {[%clk 0:00:17]} 1/2-1/2


[Site "https://www.chess.com"]

[Event "Titled Tuesday Blitz December 7 2021"]
[White "Mihailidis, Anastasios"]
[Black "Pourkashiyan, Atousa"]
[WhiteFideId "4205588"]
[BlackFideId "12502014"]
[WhiteElo "2312"]
[BlackElo "2285"]
[Result "1-0"]
[Round "09"]
[TimeControl "180+1"]
[Date "2021.12.07"]
[WhiteClock "0:00:05"]
[BlackClock "0:00:26"]

1. e4 {[%clk 0:03:00]}  c5 {[%clk 0:02:58]} 2. Nf3 {[%clk 0:03:00]}  e6 {[%clk 0:02:46]} 3. c4 {[%clk 0:03:00]}  Nc6 {[%clk 0:02:40]} 4. Nc3 {[%clk 0:02:59]}  a6 {[%clk 0:02:37]} 5. Be2 {[%clk 0:02:58]}  Qc7 {[%clk 0:02:37]} 6. O-O {[%clk 0:02:56]}  Nd4 {[%clk 0:02:37]} 7. d3 {[%clk 0:02:49]}  b6 {[%clk 0:02:37]} 8. Be3 {[%clk 0:02:43]}  e5 {[%clk 0:02:36]} 9. Nd5 {[%clk 0:02:43]}  Qb8 {[%clk 0:02:34]} 10. Nxd4 {[%clk 0:02:15]}  cxd4 {[%clk 0:02:32]} 11. Bd2 {[%clk 0:02:11]}  Nf6 {[%clk 0:02:17]} 12. f4 {[%clk 0:02:07]}  Nxd5 {[%clk 0:02:15]} 13. cxd5 {[%clk 0:01:56]}  exf4 {[%clk 0:02:15]} 14. Bxf4 {[%clk 0:01:56]}  Bd6 {[%clk 0:02:15]} 15. Bxd6 {[%clk 0:01:37]}  Qxd6 {[%clk 0:02:16]} 16. Qa4 {[%clk 0:01:32]}  O-O {[%clk 0:01:50]} 17. Qxd4 {[%clk 0:01:31]}  Re8 {[%clk 0:01:50]} 18. Rae1 {[%clk 0:01:24]}  a5 {[%clk 0:01:44]} 19. Bg4 {[%clk 0:01:22]}  Ba6 {[%clk 0:01:42]} 20. e5 {[%clk 0:01:07]}  Qc7 {[%clk 0:01:36]} 21. d6 {[%clk 0:00:48]}  Qa7 {[%clk 0:01:31]} 22. Qd5 {[%clk 0:00:43]}  Rf8 {[%clk 0:01:24]} 23. Rf2 {[%clk 0:00:39]}  Bb7 {[%clk 0:01:24]} 24. Qb3 {[%clk 0:00:36]}  a4 {[%clk 0:01:21]} 25. Qc4 {[%clk 0:00:30]}  Bc6 {[%clk 0:01:17]} 26. Ref1 {[%clk 0:00:29]}  b5 {[%clk 0:01:17]} 27. Qb4 {[%clk 0:00:19]}  Rae8 {[%clk 0:01:17]} 28. d4 {[%clk 0:00:19]}  Bd5 {[%clk 0:01:11]} 29. Re1 {[%clk 0:00:16]}  Bc4 {[%clk 0:01:11]} 30. b3 {[%clk 0:00:16]}  axb3 {[%clk 0:01:04]} 31. axb3 {[%clk 0:00:16]}  Qxd4 {[%clk 0:01:04]} 32. bxc4 {[%clk 0:00:15]}  Qxg4 {[%clk 0:01:03]} 33. Qxb5 {[%clk 0:00:14]}  Rc8 {[%clk 0:00:58]} 34. Ref1 {[%clk 0:00:13]}  Rxc4 {[%clk 0:00:48]} 35. Rxf7 {[%clk 0:00:09]}  Rcc8 {[%clk 0:00:29]} 36. Rxf8+ {[%clk 0:00:05]}  Rxf8 {[%clk 0:00:30]} 37. Qd5+ {[%clk 0:00:05]}  Qe6 {[%clk 0:00:30]} 38. Qxe6+ {[%clk 0:00:05]}  dxe6 {[%clk 0:00:31]} 39. Rxf8+ {[%clk 0:00:05]}  Kxf8 {[%clk 0:00:32]} 40. Kf2 {[%clk 0:00:05]}  Ke8 {[%clk 0:00:32]} 41. Ke3 {[%clk 0:00:05]}  Kd7 {[%clk 0:00:33]} 42. Kd4 {[%clk 0:00:06]}  Kc6 {[%clk 0:00:34]} 43. Kc4 {[%clk 0:00:06]}  Kb6 {[%clk 0:00:35]} 44. h3 {[%clk 0:00:04]}  h5 {[%clk 0:00:33]} 45. h4 {[%clk 0:00:03]}  g6 {[%clk 0:00:33]} 46. g3 {[%clk 0:00:03]}  Kc6 {[%clk 0:00:34]} 47. Kb4 {[%clk 0:00:04]}  Kb6 {[%clk 0:00:34]} 48. Ka4 {[%clk 0:00:04]}  Kc6 {[%clk 0:00:32]} 49. Ka5 {[%clk 0:00:04]}  Kd7 {[%clk 0:00:32]} 50. Kb6 {[%clk 0:00:04]}  Kd8 {[%clk 0:00:29]} 51. Kc6 {[%clk 0:00:04]}  Kc8 {[%clk 0:00:30]} 52. Kb6 {[%clk 0:00:04]}  Kd8 {[%clk 0:00:31]} 53. Kb7 {[%clk 0:00:04]}  Kd7 {[%clk 0:00:31]} 54. Kb8 {[%clk 0:00:04]}  Kd8 {[%clk 0:00:32]} 55. Kb7 {[%clk 0:00:03]}  Kd7 {[%clk 0:00:32]} 56. Ka6 {[%clk 0:00:03]}  Kc8 {[%clk 0:00:32]} 57. Kb5 {[%clk 0:00:03]}  Kd7 {[%clk 0:00:32]} 58. Kc5 {[%clk 0:00:03]}  Kd8 {[%clk 0:00:32]} 59. Kc6 {[%clk 0:00:03]}  Kc8 {[%clk 0:00:33]} 60. d7+ {[%clk 0:00:01]}  Kd8 {[%clk 0:00:33]} 61. Kc5 {[%clk 0:00:01]}  Kxd7 {[%clk 0:00:33]} 62. Kb6 {[%clk 0:00:02]}  Ke7 {[%clk 0:00:23]} 63. Kc6 {[%clk 0:00:03]}  Ke8 {[%clk 0:00:20]} 64. Kd6 {[%clk 0:00:04]}  Kf7 {[%clk 0:00:20]} 65. Kd7 {[%clk 0:00:04]}  g5 {[%clk 0:00:20]} 66. hxg5 {[%clk 0:00:04]}  Kg6 {[%clk 0:00:21]} 67. Kxe6 {[%clk 0:00:04]}  Kxg5 {[%clk 0:00:21]} 68. Kd6 {[%clk 0:00:05]}  Kg4 {[%clk 0:00:22]} 69. e6 {[%clk 0:00:05]}  Kxg3 {[%clk 0:00:23]} 70. e7 {[%clk 0:00:06]}  h4 {[%clk 0:00:23]} 71. e8=Q {[%clk 0:00:07]}  h3 {[%clk 0:00:24]} 72. Qg6+ {[%clk 0:00:06]}  Kf2 {[%clk 0:00:24]} 73. Qc2+ {[%clk 0:00:06]}  Kg1 {[%clk 0:00:24]} 74. Qd1+ {[%clk 0:00:06]}  Kg2 {[%clk 0:00:24]} 75. Qe2+ {[%clk 0:00:06]}  Kg1 {[%clk 0:00:25]} 76. Qe3+ {[%clk 0:00:06]}  Kg2 {[%clk 0:00:25]} 77. Qe4+ {[%clk 0:00:06]}  Kg1 {[%clk 0:00:25]} 78. Qg4+ {[%clk 0:00:06]}  Kh2 {[%clk 0:00:26]} 79. Ke5 {[%clk 0:00:06]}  Kh1 {[%clk 0:00:26]} 80. Kf4 {[%clk 0:00:06]}  h2 {[%clk 0:00:26]} 81. Qf3+ {[%clk 0:00:05]}  Kg1 {[%clk 0:00:27]} 82. Kg3 {[%clk 0:00:05]}  h1=Q {[%clk 0:00:26]} 83. Qf2# {[%clk 0:00:05]} 1-0


[Site "https://www.chess.com"]